fUSD/lending_fUSD_20240220
["ID","MTS","AMOUNT","RATE_DAILY","PERIOD"]
[314554212,1708419070024,25737.022,0.00023,2]
[314554213,1708419070048,140229.2,0.00023,2]
[314554214,1708419070072,2201.46882927,0.00023,2]
[314554215,1708419070101,5000.0,0.00023,2]
[314554216,1708419070137,78545.63449026,0.00023,2]
[314554217,1708419172150,155.04309616,0.00023,2]
[314554219,1708419269804,630.8850896,0.000232,2]
[314554220,1708419412050,346.56546629,0.00024999,10]
[314554221,1708420033130,-266.48940296,0.00023534,2]
[314554222,1708420033153,-54.70327826,0.00023535,2]
[314554223,1708420036132,-464.83792174,0.00023535,2]
[314554224,1708420036158,-1853.90705811,0.00023536,2]
[314554225,1708420147087,-380.37336698,0.00023435,2]
[314554226,1708420147108,-369.60697302,0.00023436,2]
[314554227,1708420147140,-149.93422698,0.00023436,2]
[314554228,1708420147162,-152.69038846,0.00023437,2]
[314554229,1708420147189,-230.46466223,0.00023531,2]
[314554230,1708420147209,-624.91044193,0.00023532,2]
[314554231,1708420147230,-150.0,0.00023535,2]
[314554232,1708420147251,-17263.32279155,0.00023536,2]
[314554233,1708420147273,-19456.49548885,0.00023537,2]
[314554234,1708420156095,-3021.24994334,0.00023537,2]
[314554235,1708420158096,-14990.693,0.00023537,2]
[314554236,1708420165142,-380.37336698,0.00023536,2]
[314554237,1708420165168,-416.63921772,0.00023536,2]
[314554238,1708420165192,-839.56156781,0.00023537,2]
[314554239,1708420165211,-699.20714405,0.00024163,2]
[314554240,1708420165233,-152.69038835,0.00024164,2]
[314554241,1708420165252,-1530.39865184,0.000246,2]
[314554248,1708420232433,-155.0,0.00024598,2]
[314554249,1708420232443,-2663.0342138,0.00024599,2]
[314554250,1708420232455,-366.91487999,0.00024599,2]
[314554252,1708420232467,-845.01526812,0.00024599,2]
[314554253,1708420232503,-3743.67382929,0.00024599,2]
[314554256,1708420232515,-9280.08523552,0.00024599,2]
[314554257,1708420232611,-198.17452419,0.00024597,2]
[314554258,1708420232620,-66.37547581,0.00024599,2]
[314554259,1708420232633,-2152.13094713,0.00024599,2]
[314554260,1708420232643,-265.84411324,0.000246,2]
[314554261,1708420232655,-260.001,0.000246,2]
[314554262,1708420232666,-1907.82876748,0.000246,2]
[314554263,1708420232682,-461.57652245,0.000246,2]
[314554264,1708420232697,-346.14684546,0.000246,2]
[314554265,1708420232709,-171.64955459,0.000246,2]
[314554266,1708420232719,-152.69038835,0.0002489,2]
[314554267,1708420232730,-539.80848701,0.000249,2]
[314554282,1708420238296,-730.05188774,0.000249,2]
[314554283,1708420238309,-1007.38297438,0.000249,2]
[314554284,1708420238447,-10655.75665087,0.000249,2]
[314554285,1708420238456,-435.1779919,0.000249,2]
[314554286,1708420238467,-499.99,0.000249,2]
[314554287,1708420238477,-4155.42,0.000249,2]
[314554288,1708420238486,-624.91044193,0.00024998,2]
[314554289,1708420238495,-419.45235869,0.00024998,2]
[314554290,1708420238505,-466.13809603,0.00024998,2]
[314554291,1708420238514,-300.2065875,0.00024999,2]
[314554292,1708420238524,-514159.91581531,0.00025,2]
[314554293,1708420238534,-750.0,0.00025,3]
[314554294,1708420238543,-14672.01804808,0.0002509,2]
[314554295,1708420238553,-1539.45457064,0.0002509,2]
[314554296,1708420238562,-171.87,0.00025308,2]
[314554297,1708420238572,-2000.0,0.00025572,2]
[314554298,1708420238583,-1000.0,0.00025574,2]
[314554299,1708420238593,-611.73,0.00025586,2]
[314554300,1708420238603,-152.69038835,0.00025617,2]
[314554301,1708420238613,-9596.82071038,0.000263,2]
[314554302,1708420238622,-152.69038835,0.00026343,2]
[314554303,1708420238632,-2234.65927871,0.000264,2]
[314554304,1708420238641,-660.01,0.00026517,2]
[314554305,1708420238651,-435.17799188,0.00026573,3]
[314554307,1708420238660,-246.03,0.00026722,2]
[314554308,1708420238669,-200.0,0.00026841,2]
[314554310,1708420238678,-735.88,0.00026875,2]
[314554312,1708420238687,-208.43431365,0.0002688,2]
[314554314,1708420238697,-23767.70562486,0.0002689,2]
[314554316,1708420238707,-150.32,0.000269,2]
[314554318,1708420238716,-250.0,0.00026912,2]
[314554320,1708420238724,-500.0,0.00026961,2]
[314554322,1708420238734,-185.38,0.00026967,2]
[314554324,1708420238743,-200.0,0.00026998,2]
[314554325,1708420238752,-800.0,0.00027,3]
[314554327,1708420238761,-155.81,0.00027053,2]
[314554329,1708420238770,-152.69038835,0.0002707,2]
[314554331,1708420238779,-39000.90770449,0.000272,2]
[314554333,1708420238787,-150.32,0.00027236,2]
[314554334,1708420238797,-155.81,0.00027254,2]
[314554336,1708420238806,-999.66,0.00027397,2]
[314554338,1708420238816,-155.81,0.00027455,2]
[314554341,1708420238825,-4741.34635195,0.000275,2]
[314554342,1708420238835,-999.66,0.00027556,2]
[314554345,1708420238844,-150.32,0.00027573,2]
[314554347,1708420238854,-155.81,0.00027657,2]
[314554348,1708420238863,-999.66,0.00027714,2]
[314554350,1708420238872,-152.69038835,0.00027797,2]
[314554352,1708420238881,-155.81,0.00027858,2]
[314554354,1708420238891,-999.66,0.00027872,2]
[314554356,1708420238901,-361.09783348,0.00027874,2]
[314554358,1708420238911,-150.32,0.00027909,2]
[314554360,1708420238922,-5243.66335062,0.00028,2]
[314554362,1708420238934,-196.65269696,0.00028,2]
[314554364,1708420238943,-999.66,0.0002803,2]
[314554366,1708420238953,-468.93,0.00028057,2]
[314554368,1708420238963,-155.81,0.0002806,2]
[314554370,1708420238972,-999.66,0.00028189,2]
[314554372,1708420238981,-150.32,0.00028245,2]
[314554374,1708420238990,-435.17799188,0.00028246,4]
[314554376,1708420239000,-155.81,0.00028261,2]
[314554378,1708420239010,-999.66,0.00028347,2]
[314554380,1708420239019,-23900.0,0.00028396,2]
[314554382,1708420239029,-187.84,0.00028435,10]
[314554384,1708420239038,-155.81,0.00028462,2]
[314554386,1708420239047,-250.0,0.00028463,2]
[314554388,1708420239056,-999.66,0.00028505,2]
[314554390,1708420239065,-498.99,0.00028509,2]
[314554392,1708420239075,-735.88,0.00028519,2]
[314554395,1708420239090,-152.69038835,0.00028523,2]
[314554398,1708420239104,-150.32,0.00028581,2]
[314554400,1708420239118,-999.66,0.00028664,2]
[314554403,1708420239131,-185.38,0.00028765,2]
[314554405,1708420239142,-1000.0,0.00028771,2]
[314554407,1708420239156,-660.01,0.00028781,2]
[314554409,1708420239169,-999.66,0.00028822,2]
[314554412,1708420239181,-150.32,0.00028917,2]
[314554414,1708420239195,-850.0,0.00029,3]
[314554417,1708420239208,-152.69038835,0.0002925,2]
[314554419,1708420239221,-150.32,0.00029254,2]
[314554421,1708420239231,-150.32,0.0002959,2]
[314554423,1708420239243,-24891.15960827,0.000299,2]
[314554426,1708420239255,-435.17799188,0.00029919,4]
[314554428,1708420239268,-152.69038835,0.00029976,2]
[314554430,1708420239279,-500.0,0.00029999,2]
[314554433,1708420239294,-500.0,0.00029999,2]
[314554435,1708420239308,-500.0,0.00029999,2]
[314554437,1708420239319,-500.0,0.00029999,2]
[314554439,1708420239329,-500.0,0.00029999,2]
[314554442,1708420239342,-500.0,0.00029999,2]
[314554444,1708420239354,-600.25276924,0.00029999,2]
[314554447,1708420239368,-155.27059258,0.0003,2]
[314554449,1708420239380,-344.86093576,0.0003,2]
[314554451,1708420239392,-14270.3509589,0.0003,2]
[314554454,1708420239404,-7714.36379672,0.0003,4]
[314554456,1708420239417,-782.89482021,0.000301,2]
[314554458,1708420239429,-152.96,0.00030137,2]
[314554461,1708420239442,-735.88,0.00030163,2]
[314554463,1708420239456,-185.38,0.00030563,2]
[314554465,1708420239469,-152.69038835,0.00030703,2]
[314554468,1708420239482,-1740.77866485,0.00031,7]
[314554470,1708420239493,-900.0,0.00031,3]
[314554472,1708420239503,-660.01,0.00031045,2]
[314554474,1708420239513,-209.0,0.00031191,2]
[314554477,1708420239525,-156.96,0.00031313,2]
[314554479,1708420239537,-152.69038835,0.00031429,2]
[314554481,1708420239549,-156.96,0.00031537,2]
[314554483,1708420239561,-435.17799188,0.00031593,5]
[314554486,1708420239573,-156.96,0.0003176,2]
[314554488,1708420239584,-735.88,0.00031807,2]
[314554490,1708420239594,-23412.05187128,0.000319,4]
[314554492,1708420239604,-1000.0,0.00031968,2]
[314554494,1708420239615,-156.96,0.00031984,2]
[314554497,1708420239628,-152.69038835,0.00032156,2]
[314554499,1708420239638,-156.96,0.00032208,2]
[314554501,1708420239656,-185.38,0.00032361,2]
[314554504,1708420239667,-156.96,0.00032431,2]
[314554506,1708420239678,-156.96,0.00032655,2]
[314554508,1708420239690,-150.0,0.00032682,2]
[314554510,1708420239702,-600.7938614,0.000328,2]
[314554513,1708420239712,-152.96,0.00032877,2]
[314554515,1708420239724,-156.96,0.00032879,2]
[314554517,1708420239735,-152.69038835,0.00032883,2]
[314554519,1708420239746,-150.0,0.00032937,2]
[314554522,1708420239757,-150.0,0.00033,2]
[314554524,1708420239768,-156.96,0.00033102,2]
[314554526,1708420239779,-209.0,0.00033111,5]
[314554528,1708420239790,-435.17799188,0.00033266,6]
[314554531,1708420239802,-150.0,0.00033275,2]
[314554533,1708420239815,-150.0,0.0003328,2]
[314554535,1708420239825,-660.01,0.00033308,2]
[314554537,1708420239837,-156.96,0.00033326,2]
[314554540,1708420239849,-150.0,0.00033423,2]
[314554542,1708420239860,-735.88,0.00033451,2]
[314554544,1708420239872,-156.96,0.0003355,2]
[314554546,1708420239883,-152.69038835,0.00033609,2]
[314554549,1708420239896,-532.98332235,0.00033673,2]
[314554551,1708420239909,-1035.8653,0.00033685,2]
[314554553,1708420239921,-156.96,0.00033773,2]
[314554556,1708420239933,-150.0,0.00033837,2]
[314554557,1708420239944,-150.0,0.00033846,2]
[314554558,1708420239954,-150.0,0.00033921,2]
[314554559,1708420239965,-150.0,0.00033959,2]
[314554560,1708420239976,-156.96,0.00033997,2]
[314554561,1708420239987,-1500.0,0.0003401,2]
[314554562,1708420239999,-150.0,0.00034111,2]
[314554563,1708420240010,-156.96,0.00034221,2]
[314554564,1708420240021,-150.0,0.00034264,2]
[314554565,1708420240032,-152.69038835,0.00034336,2]
[314554566,1708420240042,-156.96,0.00034444,2]
[314554567,1708420240054,-150.0,0.0003451,2]
[314554568,1708420240066,-153.61,0.00034521,2]
[314554569,1708420240078,-150.0,0.00034521,2]
[314554571,1708420240090,-150.0,0.00034552,2]
[314554573,1708420240102,-1526.47,0.00034558,2]
[314554575,1708420240113,-150.0,0.00034715,2]
[314554577,1708420240124,-150.0,0.00034728,2]
[314554579,1708420240135,-532.98332233,0.00034732,2]
[314554581,1708420240147,-1500.0,0.00034789,2]
[314554584,1708420240159,-150.0,0.00034888,2]
[314554586,1708420240170,-300.0,0.000349,5]
[314554588,1708420240182,-1963.24564328,0.000349,2]
[314554590,1708420240193,-1963.24564326,0.000349,2]
[314554592,1708420240207,-1963.24564326,0.000349,2]
[314554595,1708420240219,-1963.24564326,0.000349,2]
[314554597,1708420240230,-1963.24564326,0.000349,2]
[314554599,1708420240241,-1963.24564326,0.000349,2]
[314554601,1708420240254,-1963.24564326,0.000349,2]
[314554603,1708420240265,-150.0,0.00034924,2]
[314554606,1708420240276,-150.0,0.00034926,2]
[314554608,1708420240288,-435.17799188,0.00034939,7]
[314554610,1708420240299,-150.0,0.00034941,2]
[314554612,1708420240309,-150.0,0.00034945,2]
[314554614,1708420240320,-150.0,0.00034947,2]
[314554616,1708420240331,-150.0,0.00034976,2]
[314554619,1708420240342,-29163.46053799,0.00035,2]
[314554621,1708420240353,-199.6485449,0.00035,7]
[314554623,1708420240365,-160.37331507,0.00035,2]
[314554625,1708420240376,-177.58,0.00035,2]
[314554628,1708420240388,-500.0,0.00035,2]
[314554630,1708420240399,-150.0,0.00035027,2]
[314554632,1708420240412,-209.0,0.00035032,9]
[314554634,1708420240423,-152.69038835,0.00035062,2]
[314554637,1708420240434,-150.0,0.00035072,2]
[314554639,1708420240445,-735.88,0.00035095,2]
[314554641,1708420240457,-1000.0,0.00035164,2]
[314554643,1708420240469,-150.0,0.00035188,2]
[314554646,1708420240481,-150.0,0.00035198,2]
[314554648,1708420240492,-1979.497093,0.000352,20]
[314554650,1708420240504,-150.0,0.00035205,2]
[314554651,1708420240515,-150.0,0.00035224,2]
[314554652,1708420240527,-150.0,0.0003523,2]
[314554653,1708420240538,-150.0,0.00035245,2]
[314554654,1708420240550,-151.0212031,0.00035248,2]
[314554655,1708420240561,-692.51,0.0003526,2]
[314554656,1708420240576,-150.0,0.00035263,2]
[314554657,1708420240588,-2895.0,0.000353,2]
[314554658,1708420240599,-19981.0,0.000353,2]
[314554659,1708420240610,-300.0,0.00035326,2]
[314554660,1708420240621,-150.0,0.00035333,2]
[314554661,1708420240633,-150.0,0.00035339,2]
[314554662,1708420240644,-151.0212031,0.00035348,2]
[314554663,1708420240655,-150.0,0.00035361,2]
[314554664,1708420240667,-150.0,0.00035388,2]
[314554665,1708420240678,-150.0,0.00035417,2]
[314554666,1708420240690,-1500.0,0.00035423,2]
[314554667,1708420240702,-266.28563994,0.00035429,5]
[314554668,1708420240713,-150.0,0.00035439,2]
[314554669,1708420240725,-151.0212031,0.00035448,2]
[314554670,1708420240737,-150.0,0.00035455,2]
[314554671,1708420240748,-150.0,0.00035479,2]
[314554672,1708420240760,-150.0,0.0003548,2]
[314554673,1708420240772,-150.0,0.00035481,2]
[314554674,1708420240783,-150.0,0.00035509,2]
[314554675,1708420240794,-150.0,0.00035512,2]
[314554676,1708420240805,-3208.56352428,0.00035514,2]
[314554677,1708420240816,-5391.97735372,0.00035514,8]
[314554678,1708420240828,-154.3445474,0.00035514,2]
[314554679,1708420240840,-5207.40000001,0.00035516,2]
[314554680,1708420240851,-20000.0,0.00035516,2]
[314554681,1708420240863,-5000.0,0.00035516,3]
[314554682,1708420240874,-175.24295463,0.00035516,2]
[314554683,1708420240885,-150.0,0.00035521,2]
[314554685,1708420240896,-42635.0,0.00035527,2]
[314554687,1708420240908,-2311.12,0.00035527,2]
[314554688,1708420240919,-19872.0,0.00035527,2]
[314554689,1708420240930,-2936.887,0.00035527,2]
[314554690,1708420240942,-5636.0,0.00035527,2]
[314554691,1708420240952,-7427.0,0.00035527,2]
[314554692,1708420240964,-4122.465,0.00035527,2]
[314554693,1708420240975,-8268.451,0.00035527,2]
[314554694,1708420240986,-1038.0,0.00035527,2]
[314554695,1708420240997,-167.931,0.00035527,2]
[314554696,1708420241009,-208.036,0.00035527,2]
[314554697,1708420241020,-151.0212031,0.00035548,2]
[314554698,1708420241031,-355.11,0.00035548,2]
[314554699,1708420241042,-509.37361083,0.00035548,2]
[314554700,1708420241053,-1500.0,0.00035557,2]
[314554701,1708420241064,-660.01,0.00035572,2]
[314554702,1708420241075,-283.42,0.00035606,10]
[314554703,1708420241086,-236.18,0.00035606,10]
[314554704,1708420241097,-196.82,0.00035606,10]
[314554705,1708420241108,-164.01,0.00035606,10]
[314554706,1708420241119,-150.0,0.00035612,2]
[314554707,1708420241130,-31104.875996,0.00035614,2]
[314554708,1708420241141,-273.31169993,0.00035614,4]
[314554709,1708420241152,-5651.57684897,0.00035614,4]
[314554710,1708420241163,-155.0,0.00035614,4]
[314554711,1708420241174,-933.43174072,0.00035615,4]
[314554712,1708420241185,-500.0,0.00035615,4]
[314554713,1708420241196,-1389.62266811,0.00035615,2]
[314554714,1708420241207,-29717.80942588,0.00035615,2]
[314554715,1708420241219,-514.56782555,0.00035616,2]
[314554716,1708420241230,-500.0,0.00035616,2]
[314554717,1708420241240,-500.0,0.00035616,2]
[314554718,1708420241250,-209.70962517,0.00035616,2]
[314554719,1708420241259,-1008.18822117,0.00035616,2]
[314554720,1708420241268,-559.77995453,0.00035616,2]
[314554721,1708420241277,-500.0,0.00035616,2]
[314554722,1708420241288,-500.0,0.00035616,2]
[314554723,1708420241297,-500.0,0.00035616,2]
[314554724,1708420241306,-500.0,0.00035616,2]
[314554725,1708420241314,-321.50111596,0.00035616,2]
[314554726,1708420241324,-500.0,0.00035616,2]
[314554727,1708420241332,-500.0,0.00035616,2]
[314554728,1708420241342,-500.0,0.00035616,2]
[314554729,1708420241350,-500.0,0.00035616,2]
[314554730,1708420241359,-500.0,0.00035616,2]
[314554731,1708420241368,-500.0,0.00035616,2]
[314554732,1708420241732,-500.0,0.00035616,2]
[314554733,1708420241752,-500.0,0.00035616,2]
[314554734,1708420241765,-500.0,0.00035616,2]
[314554735,1708420241774,-500.0,0.00035616,2]
[314554736,1708420241784,-500.0,0.00035616,2]
[314554737,1708420241793,-500.0,0.00035616,2]
[314554738,1708420241802,-500.0,0.00035616,2]
[314554739,1708420241811,-500.0,0.00035616,2]
[314554740,1708420241820,-500.0,0.00035616,2]
[314554741,1708420241829,-500.0,0.00035616,2]
[314554742,1708420241839,-500.0,0.00035616,2]
[314554743,1708420241848,-500.0,0.00035616,2]
[314554744,1708420241857,-500.0,0.00035616,2]
[314554745,1708420241866,-500.0,0.00035616,2]
[314554746,1708420241875,-573.34856782,0.00035616,2]
[314554747,1708420241884,-500.0,0.00035616,2]
[314554748,1708420241893,-500.0,0.00035616,2]
[314554749,1708420241903,-500.0,0.00035616,2]
[314554750,1708420241913,-499.12073505,0.00035616,2]
[314554751,1708420241922,-500.0,0.00035616,2]
[314554752,1708420241931,-500.0,0.00035616,2]
[314554753,1708420241940,-500.0,0.00035616,2]
[314554754,1708420241949,-500.0,0.00035616,2]
[314554755,1708420241958,-500.0,0.00035616,2]
[314554756,1708420241968,-500.0,0.00035616,2]
[314554757,1708420241977,-500.0,0.00035616,2]
[314554758,1708420241986,-500.0,0.00035616,2]
[314554759,1708420241995,-500.0,0.00035616,2]
[314554760,1708420242005,-500.0,0.00035616,2]
[314554761,1708420242014,-500.0,0.00035616,2]
[314554762,1708420242024,-499.27448011,0.00035616,2]
[314554763,1708420242033,-500.0,0.00035616,2]
[314554764,1708420242042,-500.0,0.00035616,2]
[314554765,1708420242052,-500.0,0.00035616,2]
[314554766,1708420242061,-500.0,0.00035616,2]
[314554767,1708420242071,-528.58337037,0.00035616,2]
[314554768,1708420242080,-500.0,0.00035616,2]
[314554769,1708420242090,-500.0,0.00035616,2]
[314554770,1708420242100,-500.0,0.00035616,2]
[314554771,1708420242110,-500.0,0.00035616,2]
[314554772,1708420242119,-500.0,0.00035616,2]
[314554773,1708420242128,-500.0,0.00035616,2]
[314554774,1708420242137,-500.0,0.00035616,2]
[314554775,1708420242147,-250.89761078,0.00035616,2]
[314554776,1708420242155,-500.0,0.00035616,2]
[314554777,1708420242164,-500.0,0.00035616,2]
[314554778,1708420242174,-532.61370098,0.00035616,2]
[314554779,1708420242183,-500.0,0.00035616,2]
[314554780,1708420242192,-500.0,0.00035616,2]
[314554781,1708420242201,-352.50825218,0.00035616,2]
[314554782,1708420242213,-500.0,0.00035616,2]
[314554783,1708420242223,-500.0,0.00035616,2]
[314554784,1708420242232,-500.0,0.00035616,2]
[314554785,1708420242242,-500.0,0.00035616,2]
[314554786,1708420242251,-500.0,0.00035616,2]
[314554787,1708420242260,-500.0,0.00035616,2]
[314554788,1708420242270,-500.0,0.00035616,2]
[314554789,1708420242280,-500.0,0.00035616,2]
[314554790,1708420242295,-500.0,0.00035616,2]
[314554791,1708420242304,-500.0,0.00035616,2]
[314554792,1708420242314,-500.0,0.00035616,2]
[314554793,1708420242323,-500.0,0.00035616,2]
[314554794,1708420242332,-500.0,0.00035616,2]
[314554795,1708420242342,-500.0,0.00035616,2]
[314554796,1708420242350,-500.0,0.00035616,2]
[314554797,1708420242359,-500.0,0.00035616,2]
[314554798,1708420242368,-485.32710508,0.00035616,2]
[314554799,1708420242378,-500.0,0.00035616,2]
[314554800,1708420242387,-500.0,0.00035616,2]
[314554801,1708420242396,-500.0,0.00035616,2]
[314554802,1708420242405,-1221.48,0.00035616,2]
[314554803,1708420242415,-1189.59,0.00035616,2]
[314554804,1708420242425,-304.01499009,0.00035616,2]
[314554805,1708420242434,-500.0,0.00035616,2]
[314554806,1708420242443,-500.0,0.00035616,2]
[314554807,1708420242453,-500.0,0.00035616,2]
[314554808,1708420242462,-500.0,0.00035616,2]
[314554809,1708420242471,-500.0,0.00035616,2]
[314554810,1708420242481,-500.0,0.00035616,2]
[314554811,1708420242490,-500.0,0.00035616,2]
[314554812,1708420242499,-500.0,0.00035616,2]
[314554813,1708420242509,-500.0,0.00035616,2]
[314554814,1708420242518,-596.54271514,0.00035616,2]
[314554815,1708420242527,-500.0,0.00035616,2]
[314554816,1708420242536,-500.0,0.00035616,2]
[314554817,1708420242545,-500.0,0.00035616,2]
[314554818,1708420242554,-1343.34,0.00035616,2]
[314554819,1708420242563,-500.0,0.00035616,2]
[314554820,1708420242572,-500.0,0.00035616,2]
[314554821,1708420242581,-500.0,0.00035616,2]
[314554822,1708420242590,-500.0,0.00035616,2]
[314554823,1708420242600,-500.0,0.00035616,2]
[314554824,1708420242609,-500.0,0.00035616,2]
[314554825,1708420242618,-524.48049931,0.00035616,2]
[314554826,1708420242627,-500.0,0.00035616,2]
[314554827,1708420242637,-172.36371254,0.00035616,2]
[314554828,1708420242647,-500.0,0.00035616,2]
[314554829,1708420242656,-500.0,0.00035616,2]
[314554830,1708420242666,-523.68704888,0.00035616,2]
[314554831,1708420242676,-500.0,0.00035616,2]
[314554832,1708420242685,-500.0,0.00035616,2]
[314554833,1708420242695,-500.0,0.00035616,2]
[314554834,1708420242704,-500.0,0.00035616,2]
[314554835,1708420242713,-500.0,0.00035616,2]
[314554836,1708420242722,-500.0,0.00035616,2]
[314554837,1708420242732,-500.0,0.00035616,2]
[314554838,1708420242741,-500.0,0.00035616,2]
[314554839,1708420242751,-500.0,0.00035616,2]
[314554840,1708420242762,-500.0,0.00035616,2]
[314554841,1708420242771,-500.0,0.00035616,2]
[314554842,1708420242780,-500.0,0.00035616,2]
[314554843,1708420242790,-240.20674648,0.00035616,2]
[314554844,1708420242799,-688.98,0.00035616,2]
[314554845,1708420242808,-461.53593601,0.00035616,2]
[314554846,1708420242817,-500.0,0.00035616,2]
[314554847,1708420242827,-500.0,0.00035616,2]
[314554848,1708420242836,-500.0,0.00035616,2]
[314554849,1708420242845,-500.0,0.00035616,2]
[314554850,1708420242854,-500.0,0.00035616,2]
[314554851,1708420242863,-500.0,0.00035616,2]
[314554852,1708420242873,-500.0,0.00035616,2]
[314554853,1708420242882,-500.0,0.00035616,2]
[314554854,1708420242891,-500.0,0.00035616,2]
[314554855,1708420242901,-500.0,0.00035616,2]
[314554856,1708420242911,-500.0,0.00035616,2]
[314554857,1708420242920,-500.0,0.00035616,2]
[314554858,1708420242929,-500.0,0.00035616,2]
[314554859,1708420242939,-500.0,0.00035616,2]
[314554860,1708420242948,-500.0,0.00035616,2]
[314554861,1708420242957,-500.0,0.00035616,2]
[314554862,1708420242966,-500.0,0.00035616,2]
[314554863,1708420242975,-500.0,0.00035616,2]
[314554864,1708420242984,-500.0,0.00035616,2]
[314554865,1708420242994,-500.0,0.00035616,2]
[314554866,1708420243004,-500.0,0.00035616,2]
[314554867,1708420243013,-500.0,0.00035616,2]
[314554868,1708420243022,-500.0,0.00035616,2]
[314554869,1708420243032,-500.0,0.00035616,2]
[314554870,1708420243041,-500.0,0.00035616,2]
[314554871,1708420243051,-500.0,0.00035616,2]
[314554872,1708420243061,-500.0,0.00035616,2]
[314554873,1708420243071,-500.0,0.00035616,2]
[314554874,1708420243080,-500.0,0.00035616,2]
[314554875,1708420243090,-500.0,0.00035616,2]
[314554876,1708420243100,-500.0,0.00035616,2]
[314554877,1708420243109,-500.0,0.00035616,2]
[314554878,1708420243118,-500.0,0.00035616,2]
[314554879,1708420243128,-500.0,0.00035616,2]
[314554880,1708420243137,-500.0,0.00035616,2]
[314554881,1708420243146,-500.0,0.00035616,2]
[314554882,1708420243155,-500.0,0.00035616,2]
[314554883,1708420243166,-500.0,0.00035616,2]
[314554884,1708420243176,-500.0,0.00035616,2]
[314554885,1708420243186,-504.91787578,0.00035616,2]
[314554886,1708420243195,-500.0,0.00035616,2]
[314554887,1708420243207,-500.0,0.00035616,2]
[314554888,1708420243218,-500.0,0.00035616,2]
[314554890,1708420243227,-500.0,0.00035616,2]
[314554891,1708420243237,-500.0,0.00035616,2]
[314554892,1708420243247,-500.0,0.00035616,2]
[314554893,1708420243257,-500.0,0.00035616,2]
[314554894,1708420243266,-500.0,0.00035616,2]
[314554895,1708420243276,-500.0,0.00035616,2]
[314554896,1708420243285,-500.0,0.00035616,2]
[314554897,1708420243295,-500.0,0.00035616,2]
[314554898,1708420243304,-500.0,0.00035616,2]
[314554899,1708420243313,-500.0,0.00035616,2]
[314554900,1708420243323,-500.0,0.00035616,2]
[314554901,1708420243332,-500.0,0.00035616,2]
[314554902,1708420243342,-500.0,0.00035616,2]
[314554903,1708420243351,-500.0,0.00035616,2]
[314554904,1708420243360,-500.0,0.00035616,2]
[314554905,1708420243369,-500.0,0.00035616,2]
[314554906,1708420243378,-503.30511723,0.00035616,2]
[314554907,1708420243388,-500.0,0.00035616,2]
[314554908,1708420243398,-500.0,0.00035616,2]
[314554909,1708420243408,-500.0,0.00035616,2]
[314554910,1708420243423,-500.0,0.00035616,2]
[314554911,1708420243432,-500.0,0.00035616,2]
[314554912,1708420243442,-500.0,0.00035616,2]
[314554913,1708420243452,-500.0,0.00035616,2]
[314554914,1708420243462,-500.0,0.00035616,2]
[314554915,1708420243471,-500.0,0.00035616,2]
[314554916,1708420243481,-500.0,0.00035616,2]
[314554917,1708420243490,-314.66849773,0.00035616,2]